bitfinex/quotes_ETHUSD_20250810
["timestamp","ask_amount","ask_price","bid_price","bid_amount"]
[1754862692319,0.5718,4220.3,4219.9,3.691]
[1754862693806,2.94134456,4220.3,4219.9,3.691]
[1754862694004,3.47241788,4220.3,4219.9,3.691]
[1754862695124,3.01901788,4220.3,4219.9,3.691]
[1754862695329,2.36961991,4220.1,4219.9,3.691]
[1754862695534,0.1184,4220.0,4219.8,0.001]
[1754862695828,2.3697244,4219.9,4219.8,0.001]
[1754862695993,2.8231244,4219.9,4219.8,0.001]
[1754862697015,2.3697244,4219.9,4219.8,0.001]
[1754862697193,2.8231244,4219.9,4219.8,0.001]
[1754862699226,5.8231244,4219.9,4219.8,0.001]
[1754862699527,7.64634175,4219.9,4219.8,0.001]
[1754862699713,8.79313589,4219.9,4219.8,0.001]
[1754862699915,7.86765967,4219.9,4219.8,0.001]
[1754862700150,8.15945967,4219.9,4219.8,0.001]
[1754862704242,11.84045967,4219.9,4219.8,0.001]
[1754862704736,11.54865967,4219.9,4219.8,0.001]
[1754862705300,11.84045967,4219.9,4219.8,0.001]
[1754862705722,14.79283529,4219.9,4219.8,1e-08]
[1754862706030,15.21751241,4219.9,4219.8,1e-08]
[1754862706242,15.08463529,4219.9,4219.8,1e-08]
[1754862706405,13.81345967,4219.9,4219.8,1e-08]
[1754862708407,14.6628012,4219.9,4219.8,1e-08]
[1754862709347,13.81345967,4219.9,4219.8,1e-08]
[1754862710835,13.52165967,4219.9,4219.8,1e-08]
[1754862711343,13.51465967,4219.9,4219.8,1e-08]
[1754862711638,13.51365967,4219.9,4219.8,1e-08]
[1754862714244,17.29360441,4219.9,4219.8,1e-08]
[1754862715131,13.62060441,4219.9,4219.8,1e-08]
[1754862715331,17.29060441,4219.9,4219.8,1e-08]
[1754862715652,17.28960441,4219.9,4219.8,1e-08]
[1754862716521,51.28960441,4219.9,4219.8,1e-08]
[1754862716834,51.28960441,4219.9,4219.4,0.001]
[1754862716835,3.79294904,4219.5,4219.4,1e-08]
[1754862717052,17.97266696,4219.5,4219.4,1e-08]
[1754862717214,18.91694494,4219.5,4219.4,1e-08]
[1754862719540,19.46694494,4219.5,4219.4,1e-08]
[1754862720568,19.64691359,4219.5,4219.4,1e-08]
[1754862720770,21.96395427,4219.5,4219.4,1e-08]
[1754862721270,22.25575427,4219.5,4219.4,1e-08]
[1754862721479,53.1050958,4219.5,4219.4,1e-08]
[1754862722165,45.6432958,4219.5,4219.4,1e-08]
[1754862722363,44.79395427,4219.5,4219.4,1e-08]
[1754862722542,45.08575427,4219.5,4219.4,1e-08]
[1754862722744,49.08575427,4219.5,4219.4,1e-08]
[1754862723151,49.21854003,4219.5,4219.4,1e-08]
[1754862723542,45.21854003,4219.5,4219.4,1e-08]
[1754862723743,1.423,4218.6,4218.5,0.001]
[1754862723955,10.99447257,4218.6,4218.5,0.001]
[1754862724150,11.50405055,4218.6,4218.5,0.001]
[1754862724444,11.50605055,4218.6,4218.5,0.001]
[1754862725064,7.84005055,4218.6,4218.5,0.001]
[1754862725245,11.50605055,4218.6,4218.5,0.001]
[1754862725445,11.50505055,4218.6,4218.5,0.001]
[1754862726058,8.4776608,4218.6,4218.5,0.001]
[1754862726259,11.50505055,4218.6,4218.5,0.001]
[1754862727382,11.93975055,4218.6,4218.5,0.001]
[1754862728185,3.85766077,4218.6,4218.5,0.9139]
[1754862728389,0.1184,4218.6,4218.5,0.9139]
[1754862728568,0.63773205,4219.6,4218.5,0.9139]
[1754862728878,4.0,4219.9,4218.7,2.37039846]
[1754862729077,4.0,4219.9,4219.6,2.3698825]
[1754862729290,3.683,4220.2,4219.6,2.3698825]
[1754862729470,3.683,4220.2,4219.7,0.4565]
[1754862729674,2.37145503,4220.4,4219.7,0.4565]
[1754862729872,3.682,4220.3,4219.7,2.82632902]
[1754862730180,3.002,4220.4,4219.8,0.4565]
[1754862730385,0.002,4220.4,4219.8,0.4565]
[1754862730548,3.002,4220.4,4219.8,0.4565]
[1754862731481,5.37144975,4220.4,4219.8,0.4565]
[1754862731885,0.002,4220.4,4219.8,0.4565]
[1754862732093,3.681,4220.3,4219.8,0.4565]
[1754862733595,3.681,4220.3,4219.8,2.36977078]
[1754862733895,0.002,4220.4,4220.1,2.36959696]
[1754862734492,0.002,4220.4,4220.2,0.4565]
[1754862734894,0.002,4220.4,4220.2,2.82605304]
[1754862735095,0.002,4220.4,4220.1,2.3696037]
[1754862735309,0.002,4220.4,4220.0,0.4565]
[1754862735512,0.002,4220.4,4220.0,2.82616707]
[1754862735895,0.002,4220.4,4220.3,2.36949979]
[1754862736295,0.002,4220.4,4220.3,2.82599979]
[1754862736727,0.002,4220.4,4220.3,3.37599979]
[1754862737687,0.002,4220.4,4220.3,3.38109979]
[1754862737885,0.04,4220.9,4220.8,2.3692191]
[1754862738092,0.04,4220.9,4220.8,2.65185754]
[1754862738284,0.04,4220.9,4220.8,3.66345754]
[1754862738499,0.002,4221.6,4221.5,2.91882624]
[1754862738743,0.002,4221.6,4221.5,6.60182624]
[1754862738913,1e-08,4221.6,4221.5,7.06342624]
[1754862739113,1e-08,4221.7,4221.6,5.91877013]
[1754862739422,1e-08,4221.7,4221.6,6.38037013]
[1754862743593,1e-08,4221.7,4221.6,10.05837013]
[1754862745502,1e-08,4221.7,4221.6,7.05837013]
[1754862745818,1e-08,4221.7,4221.6,3.678]
[1754862746601,0.46550001,4221.7,4221.0,2.36908225]
[1754862746919,1e-08,4221.7,4221.1,3.677]
[1754862747119,1e-08,4221.7,4221.1,6.04603594]
[1754862747808,0.934,4221.6,4221.1,3.677]
[1754862748010,0.934,4221.5,4221.1,3.677]
[1754862748214,0.4655,4221.5,4221.1,3.677]
[1754862748414,2.36875876,4221.7,4221.1,3.677]
[1754862748727,2.36885364,4221.5,4221.1,3.677]
[1754862750331,2.36885364,4221.5,4220.1,0.551]
[1754862750332,2.36896804,4221.3,4221.2,3.674]
[1754862750632,2.36899528,4221.2,4220.4,2.36940032]
[1754862750816,2.36899528,4221.2,4220.5,3.674]
[1754862752239,0.4655,4221.3,4220.6,2.36932294]
[1754862752395,2.83445498,4221.3,4220.5,3.674]
[1754862752613,2.83445498,4221.3,4220.1,0.001]
[1754862752614,2.36910364,4221.1,4220.1,2.37059789]
[1754862752803,2.36910364,4221.1,4220.3,2.36944848]
[1754862753528,2.36910364,4221.1,4220.4,2.36942359]
[1754862753900,0.934,4221.2,4220.2,6.04152642]
[1754862754297,3.30303518,4221.2,4220.4,2.36939738]
[1754862754807,2.36905524,4221.1,4220.4,2.36942643]
[1754862756135,0.934,4221.2,4220.4,2.36942643]
[1754862756302,3.3030111,4221.2,4220.4,2.36942643]
[1754862757392,2.83457571,4221.1,4220.4,2.36942643]
[1754862758030,3.30307571,4221.1,4220.4,2.36942643]
[1754862758730,0.934,4221.1,4220.2,3.672]
[1754862759098,0.934,4221.1,4220.5,2.36937798]
[1754862759731,0.934,4221.1,4220.3,2.36949979]
[1754862759732,0.4685,4221.1,4220.3,2.36949979]
[1754862760045,0.4655,4221.0,4220.3,2.36949979]
[1754862760202,0.4655,4221.0,4220.6,2.36932941]
[1754862760406,0.4655,4221.0,4220.7,3.666]
[1754862760599,2.36876084,4221.7,4220.7,6.03526971]
[1754862760600,2.36889122,4221.4,4220.7,6.03526971]
[1754862760799,0.4655,4220.9,4220.7,6.03526971]
[1754862761525,0.4655,4220.9,4220.7,3.666]
[1754862761731,0.4655,4220.9,4220.7,6.03525748]
[1754862762101,0.934,4220.8,4220.7,6.03525748]
[1754862762629,0.50852913,4221.6,4220.9,2.36913409]
[1754862762828,0.4655,4221.4,4220.7,6.03525748]
[1754862763030,0.4655,4221.4,4220.9,2.36912758]
[1754862763533,2.36877307,4221.6,4220.9,2.36912758]
[1754862763534,0.4655,4221.3,4220.9,2.36912758]
[1754862763918,0.4655,4221.2,4220.9,2.36912758]
[1754862764518,0.934,4221.1,4220.8,2.36920739]
[1754862764822,1e-08,4221.7,4221.3,2.3688998]
[1754862764823,0.46550001,4221.7,4221.3,2.3688998]
[1754862765006,0.46550001,4221.7,4220.3,2.36946439]
[1754862765007,0.934,4221.6,4221.4,3.662]
[1754862765200,2.36887293,4221.5,4221.3,3.663]
[1754862765403,0.934,4221.4,4221.3,3.663]
[1754862766527,3.30288236,4221.4,4221.3,3.663]
[1754862767127,0.934,4221.4,4220.7,2.36925193]
[1754862767312,0.4685,4221.4,4220.8,6.03121336]
[1754862767518,0.4655,4221.3,4220.8,6.03121336]
[1754862767730,0.9176,4221.2,4220.8,6.03121336]
[1754862767914,2.36884362,4221.5,4220.8,6.03121336]
[1754862768118,0.9176,4221.1,4220.8,6.03121336]
[1754862768351,0.4381,4221.1,4220.8,6.03121336]
[1754862768509,0.4795,4221.0,4220.8,6.03121336]
[1754862769043,0.4795,4221.0,4220.9,2.36916297]
[1754862771914,0.4795,4221.0,4220.8,6.03220187]
[1754862774322,0.4795,4221.0,4220.9,2.36916297]
[1754862774625,0.4381,4221.1,4220.9,6.02416297]
[1754862775145,0.4795,4221.0,4220.9,3.655]
[1754862775941,0.50904671,4221.4,4220.9,6.02415218]
[1754862776142,0.50904671,4221.3,4220.9,6.02415218]
[1754862776314,3.00651245,4221.6,4220.8,0.001]
[1754862776315,0.50904671,4221.2,4221.0,3.654]
[1754862776517,0.4795,4221.2,4220.8,2.37020068]
[1754862776722,0.4795,4221.2,4220.9,3.654]
[1754862777045,0.4795,4221.1,4221.0,3.654]
[1754862777247,0.98854671,4221.1,4221.0,3.654]
[1754862777448,0.4795,4221.1,4221.0,3.654]
[1754862777816,0.98854671,4221.1,4221.0,3.654]
[1754862778017,0.4795,4221.1,4221.0,3.654]
[1754862778439,0.98854671,4221.1,4221.0,3.654]
[1754862778634,0.4795,4221.1,4221.0,3.654]
[1754862778839,0.4795,4221.1,4220.9,2.36916138]
[1754862779050,0.98854671,4221.1,4221.0,3.654]
[1754862779224,0.4795,4221.1,4221.0,3.654]
[1754862780319,0.4795,4221.1,4220.9,2.36916138]
[1754862780639,0.4795,4221.1,4221.0,3.654]
[1754862783135,0.9176,4221.1,4221.0,3.654]
[1754862783351,0.4795,4221.1,4220.8,2.37016876]
[1754862783564,0.50904671,4221.3,4221.0,3.654]
[1754862783853,2.36889653,4221.4,4221.0,3.654]
[1754862784052,0.9176,4221.3,4221.0,3.654]
[1754862784564,0.9176,4221.2,4221.0,3.654]
[1754862784726,8.08064671,4221.1,4220.8,0.001]
[1754862784925,8.08064671,4221.1,4220.3,0.001]
[1754862784926,6.64403713,4220.9,4220.3,0.001]
[1754862785223,6.64403713,4220.9,4219.5,3.655]
[1754862785224,2.36989288,4219.6,4219.5,0.001]
[1754862785726,3.28749288,4219.6,4219.5,0.001]
[1754862785923,3.90412533,4219.6,4219.5,0.001]
[1754862786149,6.90412533,4219.6,4219.5,0.001]
[1754862789055,10.55812533,4219.6,4219.5,0.001]
[1754862790758,4.53423245,4219.6,4219.5,0.001]
[1754862790960,0.63918628,4220.9,4219.5,0.4288]
[1754862791143,2.36920606,4220.9,4220.1,2.36957534]
[1754862791341,0.98859173,4221.0,4219.9,0.4278]
[1754862791533,0.4795,4221.0,4220.2,0.4278]
[1754862792063,0.4795,4221.0,4220.2,2.79733879]
[1754862792860,0.4795,4221.0,4220.4,2.36939763]
[1754862796464,3.0,4221.1,4220.4,2.36939763]
[1754862796658,4.1872396,4221.1,4220.4,2.36939763]
[1754862797044,5.36912888,4221.0,4220.2,2.79730829]
[1754862797246,5.36912888,4221.0,4220.3,2.36949473]
[1754862797247,3.0,4221.0,4220.3,2.36949473]
[1754862797543,3.0,4221.0,4220.4,2.36943063]
[1754862797743,3.62770094,4221.0,4220.4,2.36943063]
[1754862801135,7.28170094,4221.0,4220.4,2.36943063]
[1754862801877,6.654,4221.0,4220.5,2.36938445]
[1754862802240,0.9427,4220.9,4220.5,2.36938445]
[1754862802454,0.4784,4220.8,4220.5,2.36938445]
[1754862802973,0.4784,4220.8,4220.4,2.36942692]
[1754862803144,3.654,4221.0,4220.3,2.81929822]
[1754862803345,3.654,4221.1,4220.5,2.36934677]
[1754862803547,3.654,4221.1,4220.4,2.36943576]
[1754862803968,3.0,4221.0,4220.4,2.36943576]
[1754862805052,0.95013946,4220.9,4218.9,0.001]
[1754862805261,2.36954141,4220.3,4219.2,2.37011035]
[1754862805469,3.654,4220.2,4219.2,2.37011035]
[1754862805642,4.5967,4220.2,4219.2,2.37011035]
[1754862805978,2.36989288,4219.6,4218.9,0.001]
[1754862806379,3.31259288,4219.6,4218.9,0.001]
[1754862808297,7.2462305,4219.6,4218.9,0.001]
[1754862808646,10.9002305,4219.6,4218.9,0.001]
[1754862812599,10.4359305,4219.6,4218.9,0.001]
[1754862813075,10.9002305,4219.6,4218.9,0.001]
[1754862813489,9.9585305,4219.6,4218.9,0.001]
[1754862814195,9.9575305,4219.6,4218.9,0.4508]
[1754862814390,6.3035305,4219.6,4218.9,0.4508]
[1754862814693,6.02371701,4220.0,4219.5,0.4508]
[1754862814991,3.0,4219.9,4219.6,0.4498]
[1754862815168,3.0,4219.9,4219.5,0.001]
[1754862815378,2.36962385,4220.1,4219.6,0.4498]
[1754862815570,3.4784,4220.5,4219.6,0.4498]
[1754862815766,2.36951423,4220.3,4219.6,0.4498]
[1754862816096,5.36956491,4220.2,4219.6,0.4498]
[1754862816299,3.0,4220.0,4219.6,0.4498]
[1754862817699,3.0,4220.0,4219.5,0.001]
[1754862819987,3.4784,4220.0,4219.5,0.001]
[1754862822507,0.4784,4219.9,4219.5,0.001]
[1754862824874,2.36940113,4220.5,4219.7,2.369789]
[1754862825107,2.36946524,4220.4,4219.8,0.4498]
[1754862825472,3.0,4220.5,4219.8,0.4498]
[1754862825674,6.654,4220.5,4219.9,2.36967784]
[1754862826371,3.0,4220.5,4219.9,2.36967784]
[1754862826573,6.654,4220.5,4219.9,2.36967784]
[1754862826799,3.0,4220.5,4219.9,2.36967784]
[1754862827029,3.654,4220.7,4220.0,2.3696635]
[1754862827187,3.0,4220.6,4220.0,2.3696635]
[1754862829984,3.0,4220.7,4220.1,2.36960465]
[1754862830194,3.51011094,4220.7,4220.1,2.36960465]
[1754862830399,3.0,4220.7,4220.1,2.36960465]
[1754862830797,3.4531,4220.7,4220.1,2.36960465]
[1754862831196,3.96328747,4220.7,4220.0,2.36965332]
[1754862831590,0.51018747,4220.7,4219.8,0.4498]
[1754862831800,7.1395,4221.0,4220.3,2.36947425]
[1754862832001,9.50862375,4221.0,4220.3,2.36947425]
[1754862834176,7.1395,4221.0,4220.4,2.36941049]
[1754862834409,2.82216635,4221.1,4220.5,2.36936464]
[1754862834410,3.653,4221.1,4220.5,2.36936464]
[1754862834715,3.0,4221.0,4220.6,2.36931997]
[1754862834908,3.4865,4221.0,4220.4,2.36943894]
[1754862835127,3.4865,4221.0,4220.4,2.65228283]
[1754862835510,0.4865,4221.0,4220.7,2.36926516]
[1754862835805,0.4865,4220.9,4220.7,2.36926516]
[1754862836711,3.655,4221.3,4220.5,2.36938549]
[1754862836913,4.1415,4221.3,4220.5,2.36938549]
[1754862837084,0.9396,4221.2,4220.7,2.36922807]
[1754862837413,0.9396,4221.1,4220.7,2.36922807]
[1754862837610,0.4531,4221.1,4220.7,2.36922807]
[1754862837817,0.9396,4221.0,4220.7,2.36922807]
[1754862838187,0.4865,4220.9,4220.7,2.36922807]
[1754862838389,0.4865,4220.9,4220.5,2.36935061]
[1754862838600,0.4865,4220.9,4220.8,2.3692191]
[1754862839818,0.002,4221.3,4221.1,2.36901104]
[1754862840190,0.002,4221.3,4221.2,2.36899459]
[1754862840785,0.002,4221.3,4220.9,2.36916068]
[1754862841190,0.002,4221.3,4221.0,2.36906323]
[1754862841721,0.002,4221.3,4221.1,2.36903154]
[1754862843718,0.002,4221.3,4220.4,0.28284389]
[1754862843719,0.002,4221.3,4221.2,2.36899459]
[1754862844821,0.002,4221.3,4221.1,2.36904348]
[1754862845190,0.002,4221.3,4221.2,2.36899459]
[1754862845384,0.002,4221.3,4220.9,2.82815966]
[1754862846005,0.002,4221.3,4220.9,0.459]
[1754862846191,0.002,4221.3,4221.1,2.36903043]
[1754862847319,0.002,4221.3,4220.8,3.652]
[1754862847490,0.002,4221.3,4220.8,6.33613998]
[1754862847696,0.002,4221.3,4221.0,2.36908325]
[1754862847697,0.9396,4221.2,4221.0,2.36908325]
[1754862847996,0.4865,4221.1,4221.0,2.36908325]
[1754862848421,0.002,4221.3,4221.0,2.36908325]
[1754862848728,0.4885,4221.3,4221.1,2.36904723]
[1754862849098,0.002,4221.3,4221.1,2.36904723]
[1754862849297,0.002,4221.3,4221.0,2.36909713]
[1754862849499,0.002,4221.3,4221.1,2.36903663]
[1754862852032,0.002,4221.3,4221.2,2.36899459]
[1754862852730,0.002,4221.3,4221.1,2.36904323]
[1754862853099,0.002,4221.3,4221.2,2.36899459]
[1754862853731,0.002,4221.3,4221.1,2.36903399]
[1754862855412,0.002,4221.3,4221.1,6.01903399]
[1754862856030,0.002,4221.3,4221.2,2.36899459]
[1754862859537,0.002,4221.3,4221.1,6.01904344]
[1754862867140,0.4891,4221.3,4221.1,6.01904344]
[1754862869327,0.002,4221.3,4221.1,6.01904344]
[1754862870720,0.002,4221.3,4221.2,2.36899459]
[1754862872220,0.002,4221.3,4221.1,6.01903368]
[1754862872420,0.002,4221.3,4221.2,2.36899459]
[1754862874358,0.002,4221.3,4221.2,2.48739459]
[1754862876540,0.4891,4221.3,4221.2,2.48739459]
[1754862877371,0.002,4221.3,4221.2,2.48739459]
[1754862879259,0.4891,4221.3,4221.2,2.48739459]
[1754862879558,0.002,4221.3,4221.2,2.48739459]
[1754862882169,0.4891,4221.3,4221.2,2.48739459]
[1754862883260,0.002,4221.3,4221.2,2.48739459]
[1754862884769,0.4891,4221.3,4221.2,2.48739459]
[1754862885353,0.9262,4221.3,4221.2,0.1184]
[1754862885554,0.9262,4221.3,4220.8,2.36916701]
[1754862885555,0.9262,4221.3,4221.0,3.7654]
[1754862885748,0.9242,4221.2,4221.0,3.7644]
[1754862885948,0.9242,4221.1,4221.0,3.7644]
[1754862886352,0.9242,4221.1,4221.0,6.13350684]
[1754862887637,0.9242,4221.1,4221.0,3.646]
[1754862889575,0.1204,4221.3,4221.0,3.646]
[1754862889957,0.4597,4221.2,4221.0,3.646]
[1754862891877,0.002,4221.3,4221.0,3.646]
[1754862892079,0.002,4221.3,4221.1,2.36905072]
[1754862892380,0.002,4221.3,4221.2,3.646]
[1754862892575,0.4617,4221.3,4221.2,3.646]
[1754862895071,0.4617,4221.3,4221.2,6.01499459]
[1754862896152,0.4617,4221.3,4221.2,3.646]
[1754862898767,0.9352,4221.3,4221.2,3.646]
[1754862899480,0.9352,4221.3,4221.1,0.0504]
[1754862899728,1.0516,4221.2,4221.1,0.0504]
[1754862900201,3.42059459,4221.2,4221.1,0.0504]
[1754862900355,3.64277011,4221.2,4221.1,0.0504]
[1754862900556,3.64277448,4221.2,4221.1,0.0504]
[1754862900757,4.15338798,4221.2,4221.1,0.0504]
[1754862900951,8.20290582,4221.2,4221.1,0.0504]
[1754862901480,8.84117269,4221.2,4221.1,0.0504]
[1754862901683,8.20290582,4221.2,4221.1,0.0504]
[1754862902656,9.62590582,4221.2,4221.1,0.0504]
[1754862902852,9.75905762,4221.2,4221.1,0.0504]
[1754862903160,9.62590582,4221.2,4221.1,0.0504]
[1754862903580,9.7589631,4221.2,4221.1,0.0504]
[1754862903891,9.75854614,4221.2,4221.1,0.0504]
[1754862904190,10.47661162,4221.2,4221.1,0.0504]
[1754862904790,39.62548851,4221.2,4221.1,0.0504]
[1754862904992,40.47657867,4221.2,4221.1,0.0504]
[1754862906189,40.47657867,4221.2,4219.8,0.001]
[1754862906190,3.0,4221.1,4219.8,0.001]
[1754862906358,2.3697244,4219.9,4219.8,0.001]
[1754862906957,2.8294244,4219.9,4219.8,0.001]
[1754862907493,2.48808296,4220.0,4219.8,0.001]
[1754862908769,0.1184,4220.0,4219.8,0.001]
[1754862909791,0.5781,4220.0,4219.8,0.001]
[1754862909998,2.9477853,4220.0,4219.8,0.001]
[1754862911493,2.3697244,4219.9,4219.8,0.001]
[1754862912798,0.1184,4220.0,4219.8,0.001]
[1754862912799,2.48808343,4220.0,4219.8,0.001]
[1754862913003,0.96856574,4220.0,4219.8,0.001]
[1754862913395,0.1184,4220.0,4219.8,0.001]
[1754862914012,0.5781,4220.0,4219.8,0.001]
[1754862914302,0.4597,4219.9,4219.8,0.001]
[1754862914467,0.1184,4220.0,4219.8,0.001]
[1754862915774,2.8432244,4219.9,4219.8,0.001]
[1754862916103,4.20045186,4219.9,4219.8,0.001]
[1754862916280,2.36989288,4219.6,4219.5,0.001]
[1754862916481,5.36994904,4219.5,4219.3,0.001]
[1754862916704,2.37011755,4219.2,4219.1,0.001]
[1754862916890,10.23240872,4219.2,4219.1,0.001]
[1754862917201,11.16560872,4219.2,4219.1,0.001]
[1754862923126,11.16460872,4219.2,4219.1,0.001]
[1754862923496,10.69610872,4219.2,4219.1,0.001]
[1754862924019,11.15770872,4219.2,4219.1,0.001]
[1754862926201,7.51470872,4219.2,4219.1,0.001]
[1754862926402,6.70680872,4219.2,4219.1,0.001]
[1754862926604,10.34980872,4219.2,4219.1,0.001]
[1754862926810,10.81450872,4219.2,4219.1,0.001]
[1754862927235,11.27610872,4219.2,4219.1,0.001]
[1754862927398,7.17150872,4219.2,4219.1,0.001]
[1754862927600,10.81450872,4219.2,4219.1,0.001]
[1754862927800,7.17150872,4219.2,4219.1,0.001]
[1754862928136,10.81450872,4219.2,4219.1,0.001]
[1754862928297,11.27610872,4219.2,4219.1,0.001]
[1754862928491,7.63310872,4219.2,4219.1,0.001]
[1754862928720,11.27610872,4219.2,4219.1,0.001]
[1754862930238,11.78567265,4219.2,4219.1,0.001]
[1754862930804,11.32407265,4219.2,4219.1,0.001]
[1754862931122,10.85937891,4219.2,4219.1,0.001]
[1754862931326,11.78567891,4219.2,4219.1,0.001]
[1754862931498,4.84626136,4219.2,4219.1,0.001]
[1754862931699,9.13151755,4219.2,4219.1,0.001]
[1754862932321,0.1184,4219.2,4219.1,0.001]
[1754862932520,3.38415672,4220.4,4219.1,0.4434]
[1754862932521,0.1184,4219.3,4219.1,0.4434]
[1754862932836,0.1184,4219.6,4219.4,2.36995291]
[1754862933008,0.1184,4219.6,4219.5,2.82094904]
[1754862933211,0.22119698,4221.0,4219.5,0.7330949]
[1754862933542,0.22119698,4221.1,4219.6,0.4291]
[1754862933760,3.7634,4221.2,4220.9,2.36915017]
[1754862933944,0.002,4221.2,4221.1,2.36905072]
[1754862934140,0.002,4221.2,4221.1,2.79815072]
[1754862939512,0.002,4221.2,4221.1,2.78955072]
[1754862941143,0.002,4221.2,4221.1,3.31726747]
[1754862941347,0.002,4221.2,4221.1,2.78955072]
[1754862944345,0.002,4221.2,4221.1,6.42955072]
[1754862947245,0.002,4221.2,4221.1,6.00905072]
[1754862949658,0.002,4221.2,4221.1,6.42955072]
[1754862951555,0.002,4221.2,4221.1,6.00905072]
[1754862956357,0.002,4221.2,4221.0,2.48746642]
[1754862956566,0.9283,4221.2,4221.1,6.00705072]
[1754862956873,0.4691,4221.2,4221.1,6.00705072]
[1754862957564,0.002,4221.2,4221.1,6.00705072]
[1754862960875,0.9283,4221.2,4221.1,6.00605072]
[1754862961038,4.70632844,4221.2,4219.3,0.001]
[1754862961370,2.36935442,4220.6,4219.9,0.1184]
[1754862961570,0.1184,4220.8,4219.9,0.1184]
[1754862961571,2.7365723,4220.5,4220.0,3.637]
[1754862961975,0.9263,4220.4,4220.0,3.637]
[1754862962349,0.9263,4220.3,4220.0,3.637]
[1754862962554,0.36717544,4220.5,4220.0,3.637]
[1754862962761,0.9263,4220.2,4220.0,3.637]
[1754862962966,0.9263,4220.1,4220.0,3.637]
[1754862966077,2.36933137,4220.6,4220.0,3.637]
[1754862966379,0.1184,4220.4,4220.0,3.637]
[1754862967866,0.5855,4220.4,4220.0,3.637]
[1754862970498,0.1184,4220.4,4220.0,3.637]
[1754862970699,0.1184,4220.8,4220.2,0.1184]
[1754862970873,0.1184,4220.8,4220.3,3.636]
[1754862971463,0.9263,4220.7,4220.3,3.636]
[1754862971666,0.9263,4220.6,4220.3,3.636]
[1754862971862,0.4671,4220.5,4220.3,3.636]
[1754862973586,0.4592,4220.6,4220.3,3.636]
[1754862973791,0.9263,4220.6,4220.3,3.636]
[1754862976176,0.1184,4220.8,4220.3,3.636]
[1754862976377,0.1184,4220.8,4220.4,2.36944365]
[1754862976578,3.4592,4221.2,4220.5,3.636]
[1754862976785,3.45772021,4221.2,4220.5,6.0053798]
[1754862976985,2.99852021,4221.2,4220.5,6.0053798]
[1754862977187,0.6295241,4221.2,4220.6,2.36933023]
[1754862977616,5.36884106,4221.5,4220.7,2.36926232]
[1754862977916,0.9334,4221.5,4220.9,2.36914655]
[1754862978217,0.9334,4221.5,4220.9,6.00514655]
[1754862978917,2.36889446,4221.4,4220.9,3.636]
[1754862979298,0.4652,4221.3,4220.9,3.636]
[1754862980793,0.4652,4221.3,4220.9,6.00515933]
[1754862981521,0.9334,4221.2,4220.9,3.636]
[1754862982304,0.4652,4221.2,4220.9,3.636]
[1754862984226,2.83705565,4221.5,4220.9,3.636]
[1754862984414,3.30225565,4221.5,4220.9,3.636]
[1754862985031,3.30224005,4221.5,4220.9,3.636]
[1754862986333,2.36889213,4221.4,4220.9,3.636]
[1754862986705,0.1184,4221.3,4220.9,3.636]
[1754862986905,0.4652,4221.2,4220.9,3.636]
[1754862989064,0.5866,4221.3,4220.9,6.00515962]
[1754862989540,1.0518,4221.3,4220.9,6.00515962]
[1754862991467,0.5836,4221.3,4220.9,6.00515962]
[1754862992771,0.9334,4221.2,4220.9,3.636]
[1754862992947,2.48735932,4221.3,4220.9,3.636]
[1754862993272,0.4652,4221.2,4220.9,3.636]
[1754862994146,0.4682,4221.1,4220.7,0.1184]
[1754862994344,0.9334,4221.1,4220.7,0.1184]
[1754862994668,0.9334,4221.0,4220.7,0.1184]
[1754862995068,0.4652,4221.0,4220.7,0.1184]
[1754862995842,0.9334,4221.0,4220.7,0.1184]
[1754862996456,0.36877233,4221.2,4220.7,0.1184]
[1754862996653,1.30217233,4221.2,4220.7,0.5764]
[1754862996857,0.9334,4221.1,4220.7,0.1184]
[1754862997475,0.9334,4221.0,4220.7,0.1184]
[1754862997979,0.9334,4221.0,4220.3,2.37049749]
[1754862997980,0.9334,4221.0,4220.3,0.001]
[1754862998155,2.48784365,4220.4,4220.3,0.001]
[1754862998557,3.42124365,4220.4,4220.3,0.001]
[1754862999482,3.64311878,4220.4,4220.3,0.001]
[1754863000179,6.64311878,4220.4,4220.3,0.001]
[1754863000376,7.15409441,4220.4,4220.3,0.001]
[1754863000682,8.46973776,4220.4,4220.3,0.001]
[1754863001661,4.53633776,4220.4,4220.3,0.001]
[1754863001851,8.369887,4220.4,4220.3,0.001]
[1754863002871,8.59157477,4220.4,4220.3,0.001]
[1754863003356,8.369887,4220.4,4220.3,0.001]
[1754863003952,0.1184,4220.5,4220.3,0.001]
[1754863004493,0.1184,4220.5,4220.3,0.459]
[1754863005490,0.1184,4220.5,4220.3,0.001]
[1754863012300,0.1184,4220.7,4220.4,2.84114365]
[1754863012708,0.1184,4220.7,4220.4,0.4717]
[1754863012918,3.632,4221.3,4220.5,0.4717]
[1754863013220,6.00097997,4221.3,4220.6,2.36932781]
[1754863013419,0.22157747,4221.2,4220.6,2.36932781]
[1754863013586,0.1184,4220.9,4220.6,2.36932781]
[1754863013976,0.1184,4220.9,4220.3,0.1194]
[1754863014176,0.1184,4220.9,4220.3,0.49454]
[1754863014407,0.1184,4220.9,4220.4,2.36944365]
[1754863014723,0.1184,4220.9,4220.4,2.84114365]
[1754863015079,0.1184,4220.9,4220.5,2.36937445]
[1754863016804,0.5856,4220.9,4220.5,2.36938653]
[1754863017006,0.1184,4220.9,4220.6,2.36931971]
[1754863017376,0.1184,4220.9,4220.5,0.4717]
[1754863017708,0.1184,4220.9,4220.7,2.36925717]
[1754863018007,0.1184,4220.9,4220.6,0.4717]